Cogmind - Beta 11 X8 @@@ ROGUE MODE // 2021.11.14 @ 00:17:51 Player: Runia Result: Destroyed by D-53 Grenadier with Mini Grenade Launcher Performance ------------- Evolutions (0) 0 Regions Visited (2) 400 Robots Destroyed (27) 135 Value Destroyed (623) 623 Prototype IDs (6) 120 Alien Tech Used (0) 0 Bonus (0) 0 TOTAL SCORE: 1278 Bonus ------- None Cogmind --------- Core Integrity 0/250 Matter 74/300 Energy 65/100 System Corruption 0% Temperature Cool (0) Movement Treading (160) Location -10/Mines Parts ------- > --- POWER (1) -------- (None) > --- PROPULSION (2) --- Light Treads Light Treads > --- UTILITY (2) ------ Large Storage Unit > --- WEAPON (2) ------- Heavy Assault Rifle Heavy Assault Rifle > --- INVENTORY (15) --- Light Treads Light Treads Light Treads Light Treads High-capacity Storage Unit Medium Matter Pod (0) Improved Terrain Scanner Hacking Suite Trap Extractor Peak State ------------ > --- POWER ------------ Ion Engine > --- PROPULSION ------- Light Treads Light Treads > --- UTILITY ---------- Disposable Heat Sink Large Storage Unit > --- WEAPON ----------- Heavy Assault Rifle Heavy Assault Rifle > --- INVENTORY -------- Light Treads Light Treads Light Treads Light Treads Light Treads Huge Storage Unit Improved Terrain Scanner Hacking Suite Trap Extractor Light Assault Rifle Heavy Assault Rifle Heavy Assault Rifle Grenade Launcher [Rating: 12] Favorites ----------- Power Light Ion Engine Engine Light Ion Engine Propulsion Light Treads Treads Light Treads Leg Aluminum Leg Utility Small Storage Unit Device Heat Sink Storage Small Storage Unit Weapon EM Pulse Gun Energy Gun EM Pulse Gun Ballistic Gun Heavy Assault Rifle Launcher Grenade Launcher Build | -11 -10 -10 ------- Run | Scr Mat Min Slots Evolved . | . . . Power . | . . . Propulsion . | . . . Utility . | . . . Weapon . | . . . Parts Attached 32 | 3 22 7 Power 3 | . 3 . Engine 3 | . 3 . Core . | . . . Reactor . | . . . Propulsion 9 | 2 5 2 Treads 9 | 2 5 2 Leg . | . . . Wheel . | . . . Hover . | . . . Flight . | . . . Utility 5 | . 5 . Device 3 | . 3 . Storage 2 | . 2 . Processor . | . . . Hackware . | . . . Protection . | . . . Artifact . | . . . Weapon 15 | 1 9 5 Energy Gun 2 | 1 1 . Energy Cannon . | . . . Ballistic Gun 11 | . 7 4 Ballistic Cannon . | . . . Launcher 2 | . 1 1 Special Weapon . | . . . Impact Weapon . | . . . Slashing Weapon . | . . . Piercing Weapon . | . . . Special Melee Weapon . | . . . Unidentified Prototypes . | . . . Parts Lost 9 | . 2 7 Power 1 | . . 1 Propulsion 2 | . . 2 Utility 1 | . . 1 Weapon 5 | . 2 3 Highest Loss Streak 5 | . 1 5 Average Slot Usage (%) 94 | . 95 81 Engine 13 | . 14 10 Treads 27 | . 27 20 Device 10 | . 10 12 Storage 14 | . 14 14 Energy Gun 11 | . 11 . Ballistic Gun 16 | . 15 20 Naked Turns . | . . . Heaviest Build 32 | 12 32 32 Greatest Support 40 | 40 40 40 Greatest Overweight (x) 1 | . . 1 Average Overweight (x) . | . . . Largest Inventory Capacity 15 | 8 15 15 Average Capacity 8 | 8 11 15 Most Carried 15 | 5 15 15 Average Carried 3 | 2 7 13 Final Capacity 15 | 8 15 15 Final Carried 15 | 3 15 9 Class Distribution -------------------- 97% | Mutant Dominant Class ---------------- Mutant | -10/Materials Mutant | -10/Mines Resources | -11 -10 -10 ----------- Run | Scr Mat Min Matter Collected 529 | 230 299 . Remotely . | . . . Salvage Created 822 | 126 598 98 Parts 69 | 14 48 7 Haulers Intercepted 2 | . 2 . Recyclers Shooed 1 | . 1 . Parts Field Recycled . | . . . Retrieved Matter . | . . . Parts Self-Destructed . | . . . Prevented . | . . . Kills | -11 -10 -10 ------- Run | Scr Mat Min Combat Hostiles Destroyed 32 | . 14 18 Guns 14 | . 11 3 AOE 18 | . 3 15 Classes Destroyed 11 | 3 6 2 Worker 3 | 1 1 1 Builder 1 | . 1 . Tunneler 2 | 2 . . Hauler 2 | . 2 . Recycler 1 | 1 . . Operator 1 | . 1 . Watcher 2 | . 2 . Swarmer 3 | . 3 . Grunt 11 | . 11 . Demolisher 1 | . . 1 Assembled 17 | . . 17 Best Kill Streak 18 | 2 6 18 Combat Bots Only 17 | . 4 17 Max Kills in Single Turn 6 | 1 2 6 Gunslinging . | . . . Exploded 5 | . 2 5 Melee . | . . . Uniques/NPCs Destroyed . | . . . Combat | -11 -10 -10 -------- Run | Scr Mat Min Damage Taken 1738 | . 817 921 Core 267 | . 129 138 Absorbed by Shields . | . . . Core Remaining (%) 100 | 100 . . Volleys Fired 94 | 7 69 18 Largest 2 | 2 2 2 Hottest 80 | 80 80 46 Shots Fired 168 | 14 126 28 Gun 158 | 14 123 21 Cannon . | . . . Launcher 10 | . 3 7 Special . | . . . Kinetic 83 | . 62 21 Thermal 13 | . 13 . Explosive 10 | . 3 7 Electromagnetic 62 | 14 48 . Robot Hit Streak 9 | 6 9 7 Robot Miss Streak 4 | 2 4 3 Penetration Max . | . . . Secondary Targets 1 | . 1 . Max Gunslinging Chain 1 | . 1 . Shots Hit Robots 105 | 9 77 19 Core Hits 74 | 4 34 36 Critical Kills . | . . . Critical Parts Destroyed . | . . . Critical Strikes 2 | . 1 1 Destroy 1 | . . 1 Corrupt 1 | . 1 . Melee Attacks . | . . . Impact . | . . . Slashing . | . . . Piercing . | . . . Sneak Attacks . | . . . Combat Hostiles . | . . . Follow-up Attacks . | . . . Damage Inflicted 2935 | 114 1559 1262 Guns 1315 | 114 1024 177 Cannons . | . . . Explosions 1620 | . 535 1085 Melee . | . . . Ramming . | . . . Kinetic 658 | . 481 177 Thermal 338 | . 182 156 Explosive 1391 | . 462 929 Electromagnetic 548 | 114 434 . Impact . | . . . Slashing . | . . . Piercing . | . . . Highest Corruption . | . . . Average Corruption . | . . . Corruption Purged . | . . . Overload Shots . | . . . Overflow Damage 138 | . 42 96 Projectiles . | . . . Explosions 138 | . 42 96 Melee . | . . . Knockbacks . | . . . Impact . | . . . Kinetic . | . . . Secondary . | . . . Self-Inflicted Damage 193 | . 114 79 Shots 7 | . 3 4 Rammed . | . . . Targets Rammed . | . . . Kicked . | . . . Crushed . | . . . Highest Temperature 171 | 54 171 47 Average Temperature 42 | 22 52 15 Received Heat Transfer 411 | . 351 60 Siege Activations . | . . . Robots Corrupted . | . . . Combat Hostiles . | . . . Parts Fried 3 | . 3 . Impact Corruptions . | . . . Robots Melted . | . . . Combat Hostiles . | . . . Parts Melted . | . . . Heat Transferred 600 | . 400 200 Parts Sabotaged . | . . . Parts Stolen . | . . . Parts Stripped . | . . . Power Chain Reactions 2 | . 2 . Missiles Intercepted . | . . . Alert | -11 -10 -10 ------- Run | Scr Mat Min Peak Influence 292 | 10 292 96 Initial 76 | . 3 76 Average 17 | 1 161 76 Maximum Alert Level 1 | . 1 . Low Security (%) 97 | 100 74 100 Level 1 2 | . 25 . Level 2 . | . . . Level 3 . | . . . Level 4 . | . . . Level 5 . | . . . High Security . | . . . Max Security . | . . . Squads Dispatched 4 | . 4 . Investigation 3 | . 3 . Extermination . | . . . Reinforcement 1 | . 1 . Assault . | . . . Garrison . | . . . Intercept . | . . . Construction Impeded . | . . . Haulers Reinforced . | . . . Active Scanning Responses . | . . . Cargo Convoy Interrupts . | . . . Stealth | -11 -10 -10 --------- Run | Scr Mat Min Distress Signals 1 | . 1 . Communications Jammed . | . . . Distress Signals . | . . . Times Spotted 50 | . 28 22 Peak Tracking Total 11 | . 5 11 Tactical Retreats 3 | . 2 1 Traps | -11 -10 -10 ------- Run | Scr Mat Min Traps Triggered 5 | . 5 . Indirectly . | . . . Trap Hack Attempts . | . . . Triggered . | . . . Disarmed . | . . . Reprogrammed . | . . . Reused . | . . . Traps Extracted . | . . . Installed . | . . . Triggered . | . . . Machines | -11 -10 -10 ---------- Run | Scr Mat Min Machines Disabled 6 | . 5 1 Max in Single Turn 1 | . 1 1 Machines Sabotaged . | . . . Garrisons Compromised . | . . . Overloaded Fab Kills . | . . . Hacking | -11 -10 -10 --------- Run | Scr Mat Min Machines Accessed 9 | . 9 . Terminals 6 | . 6 . Fabricators . | . . . Repair Stations 1 | . 1 . Recycling Units 2 | . 2 . Scanalyzers . | . . . Garrison Access . | . . . Total Hacks 31 | . 31 . Successful 21 | . 21 . Failed 10 | . 10 . Catastrophic 1 | . 1 . Database Lockouts . | . . . Manual 12 | . 12 . Terminals 21 | . 21 . Fabricators . | . . . Repair Stations 3 | . 3 . Recycling Units 7 | . 7 . Scanalyzers . | . . . Garrison Access . | . . . Terminal Hacks 15 | . 15 . Robot Analysis 3 | . 3 . Prototype ID Bank 5 | . 5 . Branch Access Points 1 | . 1 . Terminal Index 1 | . 1 . Alert Level 1 | . 1 . Locate Traps 2 | . 2 . Hauler Manifests 1 | . 1 . Zone Layout 1 | . 1 . Fabricator Hacks . | . . . Repair Station Hacks 2 | . 2 . Scan Component 1 | . 1 . Repair 1 | . 1 . Recycling Unit Hacks 2 | . 2 . Report Inventory 2 | . 2 . Scanalyzer . | . . . Garrison Access Hacks . | . . . Unauthorized Hacks 2 | . 2 . Terminals . | . . . Fabricators . | . . . Repair Stations . | . . . Recycling Units 2 | . 2 . Tunnel 2 | . 2 . Scanalyzers . | . . . Garrison Access . | . . . Data Cores Recovered . | . . . Used . | . . . Hacking Detections 9 | . 9 . Full Trace Events . | . . . Feedback Events . | . . . Feedback Blocked . | . . . Robot Schematics Acquired . | . . . Robots Built . | . . . Authchips . | . . . Time . | . . . Total Robot Build Rating . | . . . Part Schematics Acquired . | . . . Parts Built . | . . . Authchips . | . . . Time . | . . . Total Part Build Rating . | . . . Parts Repaired 1 | . 1 . Time 26 | . 26 . Parts Recycled . | . . . Recycled Matter . | . . . Retrieved Matter . | . . . Retrieved Components . | . . . Parts Scanalyzed . | . . . Part Schematics Acquired . | . . . Parts Damaged . | . . . Bothacking | -11 -10 -10 ------------ Run | Scr Mat Min Used RIF Installer . | . . . Robots Hacked . | . . . Non-combat . | . . . Combat . | . . . Robot Hacks Applied . | . . . Relay Couplers Released . | . . . Fabnet Peak Effective % . | . . . Robots Rewired . | . . . Allies Hacked . | . . . Hacks Repelled . | . . . Allies | -11 -10 -10 -------- Run | Scr Mat Min Total Allies . | . . . Largest Group . | . . . Highest-Rated Group . | . . . Highest-Rated Ally . | . . . Total Orders . | . . . Ally Attacks . | . . . Total Damage . | . . . Kills . | . . . Allies Corrupted . | . . . Allies Melted . | . . . Intel | -11 -10 -10 ------- Run | Scr Mat Min Robot Analysis Total 3 | . 3 . Derelict Logs Recovered . | . . . Drone Launches . | . . . Drone Recoveries . | . . . Exploration | -11 -10 -10 ------------- Run | Scr Mat Min Turns Passed 15221 | 13677 1475 69 Spaces Moved 1548 | 823 717 8 Core . | . . . Treads 1548 | 823 717 8 Legs . | . . . Wheels . | . . . Hover . | . . . Flight . | . . . Fastest Speed 160 | 160 160 160 Average Speed 160 | 160 160 220 Slowest Speed 240 | 160 160 240 Overloaded Moves . | . . . Propulsion Burnouts . | . . . Robots Hopped . | . . . Cave-ins Triggered . | . . . Exploration Rate (%) 59 | 82 89 8 Regions Visited 2 Branch Regions 1 Pre-discovered Areas 2 | . 2 . Known Exits Taken 1 | . 1 . Unknown Exits Taken 1 | 1 . . Scrap Searched . | . . . Spaces Dug 7 | . . 7 Terrain Destroyed 74 | . 30 44 Melee . | . . . Projectile . | . . . AOE 74 | . 30 44 Terrain Rammed . | . . . Walls Destroyed . | . . . Machines Disabled . | . . . Actions | -11 -10 -10 --------- Run | Scr Mat Min Total 14126 | 13171 922 33 Wait 12417 | 12334 83 . Move 1546 | 822 716 8 Hop . | . . . Pick Up 21 | 1 20 . Fast Attach 7 | . 7 . Attach 11 | 2 3 6 Detach . | . . . Swap 14 | 1 12 1 Drop 16 | 4 12 . Fire 94 | 7 69 18 Melee . | . . . Ram . | . . . Kick . | . . . Crush . | . . . Escape Stasis . | . . . Rewire . | . . . Trap . | . . . Miscellaneous . | . . . Route ------- -11/Scrapyard -10/Materials (discovered 4 exits: [*Mat x3] / *Min) -10/Mines History --------- Turn | Location | Event 13 | -11/Scrapyard | Discovered new exit (range 3) 13678 | -11/Scrapyard | Entered Materials 13679 | -10/Materials | Build established: Mutant 13851 | -10/Materials | Discovered new exit (range 16) 13905 | -10/Materials | Identified exit to Mines 14253 | -10/Materials | Discovered new exit (range 8) 14297 | -10/Materials | Repaired Lgt. Treads 14769 | -10/Materials | Core integrity fell below 50% 14832 | -10/Materials | Discovered new exit (range 12) 15153 | -10/Materials | Entered Mines 15154 | -10/Mines | Assembled infested the area 15205 | -10/Mines | Destroyed 17 combat bots 15208 | -10/Mines | Core integrity fell below 20% 15222 | -10/Mines | Destroyed by D-53 Grenadier with Mini Grenade Launcher Last Messages --------------- 15182_ Destroyed Asb. Hover Unit. 15184_ as-84310 destroyed. 15197_ C-30 ARC bursts open, deploying its payload. 15197_ D-53 Grenadier unfolds itself. 15200_ The unstable cave ceiling collapses. 15204_ Terminal disabled. 15204_ Ion Engine destroyed. 15205_ The unstable cave ceiling collapses. 15206_ as-72669 destroyed. 15208_ as-27859 destroyed. 15209_ The unstable cave ceiling collapses. 15211_ D-53 Grenadier suffers critical hit (Destroy). 15211_ Lgt. Assault Rifle destroyed. 15213_ The unstable cave ceiling collapses. 15215_ D-53 Grenadier destroyed. 15218_ Disposable Heat Sink destroyed. 15218_ Lgt. Treads destroyed. 15219_ The unstable cave ceiling collapses. 15220_ Hvy. Assault Rifle destroyed. 15221_ The unstable cave ceiling collapses. Map ----- +----------------------------------------------------+ | | | | | | | | | ????????????????????????????????????? | | ????????????????????????????????????? | | ????????????????????????????????????? | | ????????????????????????????????????? | | ????????????????????????????????????? | | ????????????????????????????????????? | | ????????????????????????????????????? | | ??????????????????????####??????????? | | ?????????????????????# "##?????????? | | ??????????#?????????# #?????????? | | ?????????? ??????## #?????????? | | ?????????? ?????? #??????????? | | ??????????# ?????? #???????????? | | ??????????# ????? #???????????? | | ?????????? ??### #???????????? | | ??????????# ?# # ##???????????? | | ?????????## # #???????????? | | ????????## % #???????????? | | ???????## # ##???????? | | ???????# #???????? | | ???????# # !! #???????? | | ???????# @ =d! #??????? | | ???????# ## ????? | | ???????# ; ## ???? | | ???????## ;# %###?? ??????? | | ????????## #;;#;## #???????????? | | ?????????############?? #???????????? | | ????????????????????????#???????????? | | ????????????????????????????????????? | | ????????????????????????????????????? | | ????????????????????????????????????? | | ????????????????????????????????????? | | ????????????????????????????????????? | | ????????????????????????????????????? | | ????????????????????????????????????? | | ????????????????????????????????????? | | ????????????????????????????????????? | | ????????????????????????????????????? | | ????????????????????????????????????? | | ????????????????????????????????????? | | ????????????????????????????????????? | | ????????????????????????????????????? | | ????????????????????????????????????? | | ????????????????????????????????????? | | ????????????????????????????????????? | | ????????????????????????????????????? | +----------------------------------------------------+ Best States ------------- Heat Dissipation 35 Coolant Potential 50 Energy Generation 10 Energy Capacity 250 Matter Stores 300 Matter Capacity 300 Sight Range 16 Terrain Scan Density 10 Evasion (%) 40 Recoil Reduction 2 Item Schematics ----------------- None Robot Schematics ------------------ None Fabricated ------------ Nothing Alien Tech Used ----------------- None Achievements -------------- None Challenges ------------ None Game ------ Seed AntimissileGuidedNegator Manual? 0 Play Time 00:24:36 Cumulative 475.7 hours Start 2021.11.13 @ 23:46:14 End 2021.11.14 @ 00:17:51 Sessions 1 Manual Loads 0 Difficulty Rogue Special Mode None Game No. 474 Rogue 474 Adventurer 0 Explorer 0 Win Type - Total 11 Types 9/0/1/1/0/0/0/0/0 Lore% 82 Gallery% 93 Achievement% 71 Wizard Run 0 Options --------- ASCII 0 Keyboard 0 Movement Mouse Keybinds 1 Fullscreen 2 Font 24/Smallcaps Map View 76x50 Tactical HUD 1 Map Filters NONE Filters NONE Steam 1 RUN: 034e4303-7927-42e0-9c91-b5da2e635ca3